bitfinex/quotes_ETHUSD_20241108
["timestamp","ask_amount","ask_price","bid_price","bid_amount"]
[1731029521321,0.8103,2924.4,2923.1,2.62383722]
[1731029521524,0.55,2924.1,2922.9,1.78402828]
[1731029521812,0.55,2924.1,2922.7,0.05941528]
[1731029521813,0.55,2923.9,2922.7,0.05941528]
[1731029522008,0.8159,2923.6,2922.3,1.78402828]
[1731029522223,0.8159,2923.4,2922.4,0.05937656]
[1731029522438,0.55,2923.3,2922.2,2.62383722]
[1731029522624,0.8159,2923.2,2922.2,2.62383722]
[1731029523351,0.8159,2923.2,2921.8,0.8002]
[1731029523352,0.8159,2923.2,2921.9,3.23404372]
[1731029524057,0.55,2923.1,2921.6,3.23404372]
[1731029524324,0.8261,2923.0,2921.6,3.89678092]
[1731029524479,0.8261,2922.8,2921.6,3.23404372]
[1731029525064,0.8261,2922.8,2921.7,0.06844289]
[1731029525934,0.8261,2922.8,2921.6,3.23404372]
[1731029526629,0.8261,2922.8,2921.7,0.25389387]
[1731029527377,0.8261,2922.8,2921.8,0.85064008]
[1731029527540,0.8261,2922.8,2922.0,3.23404372]
[1731029527743,0.8261,2922.8,2922.1,0.39867777]
[1731029527942,0.8096,2924.1,2922.5,0.7822]
[1731029528163,8.89766707,2924.4,2922.4,3.23404372]
[1731029528164,0.8096,2923.9,2922.4,3.23404372]
[1731029528370,0.8096,2923.9,2922.5,0.32340437]
[1731029528573,0.8096,2923.9,2922.6,0.06842021]
[1731029528865,0.8096,2923.9,2922.5,0.32340437]
[1731029528866,0.8096,2923.9,2922.5,0.57718418]
[1731029529449,0.8096,2923.9,2922.6,0.25377981]
[1731029529684,0.8096,2923.9,2922.7,0.25377981]
[1731029529885,0.8096,2923.9,2922.6,0.25377981]
[1731029530087,0.8096,2923.9,2922.7,0.25377981]
[1731029530398,0.8096,2923.9,2922.6,0.38112279]
[1731029530896,0.8096,2923.9,2922.6,0.6349026]
[1731029531063,0.8096,2923.9,2922.6,0.38112279]
[1731029531268,0.8096,2923.9,2922.7,0.06842019]
[1731029531472,0.8096,2923.9,2922.6,0.38112279]
[1731029531853,0.8096,2923.9,2922.7,0.06842017]
[1731029532580,0.8096,2923.9,2922.6,0.38112279]
[1731029532954,0.8096,2923.9,2922.7,0.06841846]
[1731029533154,0.8096,2923.9,2922.6,0.38112279]
[1731029535753,0.8096,2923.9,2922.7,0.06841473]
[1731029536097,0.8096,2923.9,2922.4,3.23404372]
[1731029536267,0.8096,2923.9,2922.5,0.32340437]
[1731029537255,0.8096,2923.9,2922.6,0.06841852]
[1731029537899,0.8096,2923.9,2922.5,0.32340437]
[1731029538352,0.8096,2923.9,2922.6,0.06841842]
[1731029538966,0.8096,2923.9,2922.8,3.23404372]
[1731029539157,0.8096,2923.9,2922.9,0.39181298]
[1731029539357,0.8096,2923.9,2922.9,0.32340437]
[1731029539794,0.8096,2923.9,2922.9,0.3918087]
[1731029540097,0.8096,2923.9,2922.9,0.32340437]
[1731029540266,0.8096,2923.9,2922.9,0.39180803]
[1731029540611,0.8096,2923.9,2922.9,0.32340437]
[1731029540761,0.8096,2923.9,2923.0,0.40905044]
[1731029541091,0.8096,2923.9,2923.1,3.23404372]
[1731029541480,0.7645,2925.0,2923.5,3.23404372]
[1731029541689,0.7645,2924.9,2923.5,3.23404372]
[1731029541990,0.7645,2924.7,2923.6,0.32340437]
[1731029542199,0.7645,2924.7,2923.5,3.23404372]
[1731029543585,0.7645,2924.7,2923.1,1.77610303]
[1731029543758,0.7645,2924.7,2923.0,3.64309416]
[1731029543957,0.55,2924.6,2923.0,3.64309416]
[1731029544195,0.7855,2924.5,2923.0,3.64309416]
[1731029544403,0.7855,2924.5,2923.1,0.43271064]
[1731029544622,0.7855,2924.5,2923.4,3.23404372]
[1731029545760,0.7855,2924.5,2923.5,0.55]
[1731029546660,0.7855,2924.5,2923.8,3.23404372]
[1731029546977,0.7855,2924.5,2923.9,0.32340437]
[1731029547680,0.7919,2925.5,2924.2,3.23404372]
[1731029547887,0.7781,2925.4,2924.3,0.06837617]
[1731029548085,0.7781,2925.2,2924.2,3.23404372]
[1731029550736,0.7781,2925.2,2924.3,0.55]
[1731029550937,0.7781,2925.2,2924.2,3.23404372]
[1731029551143,0.7781,2925.2,2924.3,0.32340437]
[1731029551708,0.7781,2925.2,2924.6,3.23404372]
[1731029551909,12.14,2926.0,2924.7,0.06836963]
[1731029552229,0.7904,2925.9,2924.7,0.06836611]
[1731029552392,0.8221,2925.7,2924.7,0.48016709]
[1731029552596,0.8221,2925.7,2924.7,0.41180098]
[1731029553032,0.8221,2925.7,2924.7,0.4801671]
[1731029553251,0.8221,2925.7,2925.0,3.23404372]
[1731029553405,0.8221,2925.7,2925.1,0.06835613]
[1731029553608,0.8221,2925.7,2925.0,3.23404372]
[1731029554609,3.0,2926.7,2925.1,0.87485773]
[1731029554907,0.8243,2926.6,2925.4,3.23404372]
[1731029555109,0.8243,2926.6,2925.5,0.06834722]
[1731029555342,0.8243,2926.6,2925.6,0.8223]
[1731029555536,0.8243,2926.6,2925.7,0.06834374]
[1731029555713,0.8243,2926.6,2925.6,0.8223]
[1731029555911,0.8243,2926.6,2925.0,0.8151]
[1731029556818,0.8243,2926.6,2925.0,0.8834578]
[1731029557154,3.0,2926.4,2925.0,0.8151]
[1731029557436,0.8048,2926.3,2925.0,0.8151]
[1731029558241,0.8048,2926.3,2925.1,0.06836127]
[1731029558842,0.8048,2926.3,2925.0,0.8151]
[1731029559045,1.19208,2926.2,2925.1,0.06836128]
[1731029559204,0.8116,2926.2,2925.3,3.23404372]
[1731029559405,0.8116,2926.2,2925.4,0.7949]
[1731029559841,0.8116,2926.8,2925.4,0.7949]
[1731029562542,0.8116,2926.8,2925.5,0.06834756]
[1731029562742,1.29516,2926.7,2925.5,0.06834756]
[1731029563103,1.29516,2926.7,2925.4,0.7949]
[1731029563306,0.7933,2926.6,2925.4,0.7949]
[1731029563726,0.7933,2926.6,2925.5,0.0683428]
[1731029565003,0.7933,2926.6,2925.4,0.7949]
[1731029565206,0.7933,2926.6,2925.5,0.40289437]
[1731029565635,0.7933,2926.6,2925.6,0.06834265]
[1731029566753,0.7933,2926.6,2925.5,0.40289437]
[1731029569368,0.7933,2926.6,2925.5,3.02423406]
[1731029570898,0.7933,2926.6,2925.8,2.62133969]
[1731029571189,0.7933,2926.6,2925.9,0.26213397]
[1731029571485,0.7933,2926.6,2926.0,0.06833719]
[1731029572081,0.7933,2926.6,2926.4,2.62133969]
[1731029572375,0.805,2926.8,2926.5,0.06833289]
[1731029573253,0.80371986,2926.8,2926.6,0.26896726]
[1731029573478,0.80371986,2926.8,2926.1,2.62133969]
[1731029574677,0.80371986,2926.8,2925.6,1.3165]
[1731029574843,0.80371986,2926.8,2925.7,2.62133969]
[1731029575046,0.80371986,2926.8,2925.8,0.33878397]
[1731029576279,0.80371986,2926.8,2925.1,0.804]
[1731029576481,0.7508,2926.6,2925.1,2.62133969]
[1731029576646,0.7508,2926.6,2924.6,1.7774826]
[1731029576647,0.7508,2926.4,2924.8,2.62133969]
[1731029577008,12.69,2926.5,2924.8,2.62133969]
[1731029577009,0.7508,2926.2,2924.9,0.26213397]
[1731029577482,0.7508,2926.2,2925.0,0.06836172]
[1731029577643,0.7508,2926.2,2924.9,0.26213397]
[1731029577845,0.7508,2926.2,2924.8,2.62133969]
[1731029577846,0.778,2926.1,2924.8,2.62133969]
[1731029578849,0.778,2926.1,2924.5,2.62133969]
[1731029579152,0.55,2926.0,2924.5,2.62133969]
[1731029579351,0.8096,2925.9,2924.0,5.76630162]
[1731029579700,0.8096,2925.6,2924.4,3.22923677]
[1731029579854,0.8096,2925.6,2924.5,0.39129171]
[1731029580450,0.8096,2925.6,2924.5,0.32292368]
[1731029581252,0.8096,2925.6,2924.5,0.39129182]
[1731029581994,0.8096,2925.6,2924.5,0.32292368]
[1731029582200,0.8096,2925.6,2924.6,0.42358421]
[1731029582655,0.8096,2925.6,2924.6,0.35521605]
[1731029583154,0.8096,2925.6,2924.7,0.06836816]
[1731029583362,0.8096,2925.6,2924.6,0.35521605]
[1731029584274,0.8096,2925.6,2924.0,0.35621095]
[1731029584275,0.8307,2925.5,2924.0,5.35872536]
[1731029584480,0.8307,2925.4,2924.0,5.35872536]
[1731029584708,12.14,2925.4,2924.0,5.36257484]
[1731029584868,3.8307,2925.3,2923.7,0.38045283]
[1731029585070,0.8307,2925.1,2923.8,0.54461832]
[1731029587085,3.0,2925.0,2923.8,0.54461832]
[1731029587310,0.7518,2924.9,2923.3,4.77712712]
[1731029587594,0.7518,2924.6,2923.2,0.35678466]
[1731029587797,3.55,2924.7,2923.2,0.35678466]
[1731029587798,0.7678,2924.4,2923.2,0.35678466]
[1731029588303,3.55,2924.5,2923.2,0.35678466]
[1731029588304,0.7668,2924.2,2923.2,0.35678466]
[1731029588506,0.7668,2924.1,2922.8,3.22923677]
[1731029588818,0.7668,2924.0,2922.9,0.32292368]
[1731029590420,0.7668,2924.0,2922.4,3.22923677]
[1731029590588,0.7765,2923.9,2922.4,3.22923677]
[1731029591335,3.0,2924.1,2922.3,0.41619927]
[1731029591336,0.7765,2923.6,2922.3,0.35690773]
[1731029591604,0.7765,2923.6,2922.4,3.29766178]
[1731029591812,0.7765,2923.6,2922.5,0.36545695]
[1731029592377,0.7765,2923.6,2922.6,0.06841869]
[1731029593188,0.7765,2923.6,2922.4,3.22923677]
[1731029593392,0.7765,2923.6,2922.5,0.25345449]
[1731029594406,0.7765,2923.6,2922.6,0.06841478]
[1731029594591,0.7765,2923.6,2922.5,1.08255449]
[1731029594797,0.7765,2923.6,2922.6,0.43117913]
[1731029594980,0.7765,2923.6,2922.9,0.55]
[1731029595184,0.7765,2923.6,2923.0,0.06840385]
[1731029595398,0.7765,2923.6,2922.9,0.80345449]
[1731029596512,0.7765,2923.6,2922.9,0.25345449]
[1731029596875,0.7765,2923.6,2922.6,0.43117913]
[1731029597403,0.7765,2923.6,2922.5,0.25345449]
[1731029598213,0.7765,2923.6,2922.6,0.06842376]
[1731029599386,0.7765,2923.6,2922.4,3.22923677]
[1731029599579,0.7685,2923.5,2922.5,0.25280236]
[1731029600008,0.7685,2923.3,2922.1,0.25280236]
[1731029600276,0.7685,2923.3,2922.1,0.60100627]
[1731029600977,0.7685,2923.3,2921.6,3.22923677]
[1731029600978,0.7685,2923.3,2922.0,3.22923677]
[1731029601184,0.7685,2923.3,2922.1,0.25279394]
[1731029602011,0.8166,2923.0,2921.6,3.22923677]
[1731029602219,0.8166,2923.0,2921.7,0.25285051]
[1731029602376,0.8166,2922.8,2921.8,0.34820873]
[1731029603412,0.8166,2922.8,2921.7,0.25285051]
[1731029603707,0.8166,2922.8,2921.8,0.06844169]
[1731029604207,0.8166,2922.8,2921.8,0.0684416]
[1731029605044,0.8166,2922.8,2921.7,0.25285051]
[1731029605945,0.8166,2922.8,2921.4,0.55]
[1731029606129,0.7737,2922.6,2921.4,1.20605924]
[1731029606304,0.7737,2922.6,2921.5,0.32129541]
[1731029606507,0.7737,2922.6,2921.6,0.25285051]
[1731029606849,0.7737,2922.6,2921.5,0.25285051]
[1731029607141,0.7737,2922.6,2921.0,0.35695239]
[1731029607142,0.7737,2922.6,2921.3,0.25285051]
[1731029607357,0.7737,2922.6,2921.4,0.25285051]
[1731029607504,0.7737,2922.6,2921.0,3.22923677]
[1731029607505,0.8293,2922.4,2921.5,0.25285051]
[1731029607849,0.8293,2922.1,2920.8,0.25285051]
[1731029608059,0.8293,2921.9,2920.9,0.25285051]
[1731029608238,0.8293,2921.8,2920.6,0.25285051]
[1731029608551,0.8293,2921.6,2920.7,0.25285051]
[1731029608703,0.8324,2921.4,2920.1,0.32132073]
[1731029608908,0.8324,2921.4,2920.2,0.25285051]
[1731029609142,0.8324,2921.4,2920.3,0.32132073]
[1731029609444,0.8324,2921.3,2920.4,0.25361005]
[1731029609743,12.14,2921.4,2920.1,0.25361005]
[1731029609744,0.8324,2921.1,2920.1,0.25361005]
[1731029610128,0.8324,2921.1,2920.2,0.25361005]
[1731029610439,0.8324,2921.1,2919.9,0.25361005]
[1731029610620,0.8324,2921.1,2920.0,0.25361005]
[1731029610821,0.8324,2921.1,2920.1,0.32208969]
[1731029611036,0.8324,2921.1,2920.2,4.03284682]
[1731029611331,0.8324,2921.1,2920.4,0.55]
[1731029611529,0.8324,2921.1,2920.5,0.25361005]
[1731029611744,0.8324,2921.1,2920.6,0.25361005]
[1731029611950,0.8324,2921.1,2920.7,0.25361005]
[1731029612118,0.8324,2921.1,2920.8,0.32207741]
[1731029612322,0.8324,2921.1,2920.9,0.25361005]
[1731029612643,0.8324,2921.1,2921.0,0.25361005]
[1731029612938,0.8324,2921.1,2920.6,0.25345123]
[1731029613145,0.8324,2921.1,2920.8,3.22923677]
[1731029613305,0.8324,2921.1,2920.8,3.58435231]
[1731029613738,0.8324,2921.1,2920.9,0.253451]
[1731029614245,0.8324,2921.1,2920.9,0.32191837]
[1731029614431,0.8324,2921.1,2921.0,0.253451]
[1731029616112,0.8324,2921.1,2921.0,3.48268777]
[1731029616311,0.8324,2921.1,2921.0,3.22923677]
[1731029617347,0.8324,2921.1,2921.0,3.48323609]
[1731029618151,0.8324,2921.1,2921.0,0.25399932]
[1731029625045,0.8324,2921.1,2920.7,3.22923677]
[1731029625253,0.8324,2921.1,2920.7,3.55216045]
[1731029626868,0.7549,2921.8,2920.8,0.61846588]
[1731029627041,0.7549,2921.8,2921.1,3.22923677]
[1731029629835,0.7549,2921.8,2920.7,2.86168512]
[1731029630040,0.7549,2921.8,2920.7,4.99989821]
[1731029630234,0.7549,2921.8,2920.7,3.22923677]
[1731029631844,12.14,2921.7,2920.7,3.22923677]
[1731029632039,0.8011,2921.6,2920.7,3.22923677]
[1731029632468,0.8011,2921.6,2920.5,1.84340419]
[1731029632772,0.8011,2921.4,2920.5,1.77493293]
[1731029633239,0.8011,2921.4,2920.4,1.77493293]
[1731029633447,0.8011,2921.4,2920.4,2.63053296]
[1731029634142,0.8011,2921.4,2920.3,3.22488491]
[1731029634344,0.7603,2921.2,2920.3,3.22488491]
[1731029638532,0.7603,2921.2,2920.3,0.59435195]
[1731029638737,0.7603,2921.2,2920.0,4.40546431]
[1731029638934,0.7603,2921.2,2920.1,0.55]
[1731029639671,0.7603,2921.2,2920.0,4.40546431]
[1731029639878,0.8117,2920.9,2919.9,0.35622555]
[1731029640038,0.8117,2920.7,2920.0,0.06848603]
[1731029640555,0.8117,2920.7,2919.6,4.40792331]
[1731029640990,0.8117,2920.7,2919.7,0.55]
[1731029641307,0.8117,2920.7,2919.8,0.49579233]
[1731029641902,0.8117,2920.7,2919.8,2.63053296]
[1731029643586,0.8117,2920.7,2919.8,2.69902228]
[1731029643784,12.9517,2920.7,2919.8,2.69902228]
[1731029644807,12.9517,2920.7,2919.8,2.63053296]
[1731029645107,12.9517,2920.7,2920.1,2.63053296]
[1731029645306,12.9517,2920.7,2920.2,0.2630533]
[1731029645509,0.8117,2920.7,2920.2,0.2630533]
[1731029645809,0.8117,2920.7,2919.8,2.13591052]
[1731029646011,0.8117,2920.7,2919.7,0.06848868]
[1731029646782,0.8117,2920.7,2919.6,2.63053296]
[1731029647008,0.7834,2920.6,2919.7,0.06849168]
[1731029648415,0.7834,2920.6,2919.6,2.63053296]
[1731029648605,0.7834,2920.6,2919.7,0.44152261]
[1731029648999,0.7834,2920.6,2919.6,4.41543372]
[1731029649211,0.7857,2920.4,2919.3,1.78490076]
[1731029649525,0.7857,2920.2,2919.3,0.25993008]
[1731029649990,0.7857,2920.2,2919.3,2.89046304]
[1731029650703,0.7857,2920.2,2919.1,1.78490076]
[1731029650905,0.7857,2920.2,2919.0,1.85340751]
[1731029651090,0.7858,2920.0,2919.0,1.85340751]
[1731029651478,0.7858,2920.0,2919.1,1.78490076]
[1731029651916,0.7858,2920.0,2919.0,1.78490076]
[1731029652332,0.7858,2920.0,2918.9,1.78490076]
[1731029652795,0.7858,2920.0,2918.9,1.78732195]
[1731029652991,0.831,2919.8,2918.9,1.78732195]
[1731029653720,0.831,2919.8,2918.8,4.41785491]
[1731029654246,0.831,2919.8,2918.8,1.78732195]
[1731029654519,0.831,2919.8,2918.7,0.0685153]
[1731029654723,3.0,2919.8,2918.7,0.0685153]
[1731029654923,0.778,2919.6,2918.7,0.0685153]
[1731029655124,12.14,2919.6,2918.7,0.0685153]
[1731029655440,0.778,2919.5,2918.5,2.63053296]
[1731029660461,0.778,2919.5,2918.8,2.63053296]
[1731029661347,0.778,2919.5,2918.8,2.89358626]
[1731029661644,0.778,2919.5,2919.0,2.63053296]
[1731029662226,0.778,2919.5,2918.8,0.2630533]
[1731029662555,0.778,2919.5,2918.5,2.63053296]
[1731029667028,0.778,2919.5,2918.6,2.63053296]
[1731029668233,0.7839,2919.4,2918.6,2.63053296]
[1731029669865,0.7794,2919.3,2918.2,0.55]
[1731029670067,0.7794,2919.3,2918.2,2.63053296]
[1731029670360,0.7794,2919.3,2917.7,0.138776]
[1731029670361,0.7794,2919.0,2917.7,0.138776]
[1731029670531,6.19053296,2919.1,2917.7,0.138776]
[1731029670532,0.7794,2918.7,2917.7,0.138776]
[1731029673423,0.7794,2918.7,2917.9,2.63053296]
[1731029674358,0.7794,2918.7,2917.7,0.138776]
[1731029674665,0.7794,2918.7,2917.7,0.20731534]
[1731029675077,0.7794,2918.7,2918.2,2.63053296]
[1731029676442,0.7794,2918.7,2918.3,0.06852684]
[1731029676678,0.7794,2918.7,2917.7,0.901476]
[1731029676679,0.7794,2918.7,2918.5,2.63053296]
[1731029677347,0.7794,2918.7,2917.9,2.63053296]
[1731029677795,0.7794,2918.7,2918.0,0.06853204]
[1731029677980,0.7794,2918.7,2918.1,0.2699065]
[1731029679919,0.7794,2918.7,2917.9,2.63053296]
[1731029680124,0.7794,2918.7,2917.7,0.138776]
[1731029680425,0.7679,2918.4,2917.7,0.138776]
[1731029681218,0.7679,2918.4,2917.8,2.63053296]
[1731029682121,0.7679,2918.4,2917.7,0.138776]
[1731029686994,1.29079,2918.4,2917.7,0.138776]
[1731029687197,0.7846,2918.3,2917.7,0.138776]
[1731029699772,0.785,2918.0,2917.7,0.138776]
[1731029700050,0.785,2917.8,2917.7,0.138776]
[1731029700255,2.4086,2917.8,2917.7,0.138776]
[1731029703866,0.8161,2917.8,2917.7,0.138776]
[1731029706247,15.9561,2917.8,2917.7,0.138776]
[1731029707279,12.9561,2917.8,2917.7,0.138776]
[1731029708256,0.8224,2918.5,2917.7,0.138776]
[1731029708616,1.29624,2918.4,2917.7,0.138776]
[1731029708892,0.8123,2918.3,2917.7,0.138776]
[1731029709658,3.8123,2918.1,2917.7,0.138776]
[1731029709854,0.8123,2918.0,2917.7,0.138776]
[1731029712101,3.0,2917.8,2917.7,0.0211466]
[1731029712401,3.8123,2917.8,2917.7,0.0211466]
[1731029713170,0.7637,2917.7,2916.0,0.7672]
[1731029713381,0.8076,2917.5,2916.0,0.7672]
[1731029714963,12.14,2917.4,2916.0,0.7672]
[1731029715163,0.7507,2917.3,2916.0,0.7672]
[1731029716712,0.807,2917.0,2916.0,0.7672]
[1731029717116,0.807,2917.0,2916.1,0.06857999]
[1731029717297,0.807,2917.0,2916.0,0.7672]
[1731029717490,2.4017,2917.0,2916.0,1.28595906]
[1731029717689,2.4017,2917.0,2916.1,2.63053296]
[1731029720316,0.807,2917.0,2916.4,2.63053296]
[1731029720488,0.807,2917.0,2916.1,2.63053296]
[1731029722736,0.807,2917.0,2915.9,2.63053296]
[1731029723225,3.43753296,2917.0,2915.3,0.7957]
[1731029723383,0.8033,2916.8,2915.5,0.06246628]
[1731029723591,0.8033,2916.8,2915.3,3.42623296]
[1731029723909,0.8033,2916.8,2915.4,0.140749]
[1731029724225,0.01,2916.7,2915.4,0.07215513]
[1731029724434,0.7579,2916.5,2915.4,0.16399737]
[1731029724597,0.7579,2916.5,2915.6,2.63053296]
[1731029726021,0.7579,2916.5,2915.3,2.63053296]
[1731029727631,0.8137,2916.2,2915.3,2.63053296]
[1731029727933,0.8137,2916.1,2915.3,2.63053296]
[1731029728393,0.8137,2916.0,2914.7,0.138776]
[1731029728594,0.8137,2915.8,2914.7,0.138776]
[1731029728797,0.7949,2915.6,2914.7,0.138776]
[1731029729912,0.7728,2915.5,2914.7,0.138776]
[1731029730214,0.7728,2915.3,2914.7,0.138776]
[1731029730599,0.7728,2915.1,2914.7,0.138776]
[1731029738047,0.783,2914.8,2914.0,0.2540657]
[1731029738252,0.783,2914.8,2913.6,0.2540657]
[1731029738410,0.783,2914.8,2913.7,0.2540657]
[1731029738624,0.783,2914.8,2913.5,2.63053296]
[1731029738625,0.783,2914.8,2913.6,0.2540657]
[1731029738827,0.783,2914.8,2913.7,0.2540657]
[1731029739029,0.783,2914.8,2913.6,0.2540657]
[1731029739260,0.01,2914.9,2913.2,0.7835]
[1731029739261,0.8154,2914.6,2913.7,0.2540657]
[1731029739464,0.8254,2914.5,2913.3,0.2540657]
[1731029739777,0.01,2914.5,2913.4,0.2540657]
[1731029739974,0.01,2914.7,2913.5,0.2540657]
[1731029739975,0.8154,2914.4,2913.5,0.2540657]
[1731029740129,0.8154,2914.4,2913.5,2.63053296]
[1731029740331,0.8154,2914.4,2913.8,2.63053296]
[1731029740564,0.8154,2914.4,2913.9,0.2540657]
[1731029740735,0.8154,2914.4,2914.0,0.2540657]
[1731029740936,0.8154,2914.4,2914.1,0.2540657]
[1731029741263,0.8154,2914.4,2914.2,0.2540657]
[1731029741472,0.8154,2914.4,2913.9,0.2540657]
[1731029741644,0.8154,2914.4,2914.0,0.2540657]
[1731029741843,0.8154,2914.4,2914.1,0.2540657]
[1731029742168,0.8154,2914.4,2914.2,0.2540657]
[1731029742329,0.8154,2914.4,2913.3,0.2540657]
[1731029742532,0.8154,2914.4,2913.4,0.2540657]
[1731029742729,0.8154,2914.4,2913.5,0.2540657]
[1731029742967,0.8154,2914.4,2913.6,0.2540657]
[1731029743172,0.8254,2914.4,2913.1,0.2540657]
[1731029743372,0.8254,2914.4,2913.2,0.2540657]
[1731029743545,0.8254,2914.4,2913.3,0.2540657]
[1731029743734,0.8254,2914.4,2913.4,0.2540657]
[1731029743929,0.8254,2914.4,2913.5,0.25436471]
[1731029743930,0.8154,2914.4,2913.5,0.25436471]
[1731029744129,0.8154,2914.4,2913.6,0.25436471]
[1731029744360,0.8154,2914.4,2913.7,0.25436471]
[1731029744543,0.8154,2914.4,2913.8,0.25436471]
[1731029744884,0.8154,2914.4,2913.9,0.25436471]
[1731029745170,0.8154,2914.4,2914.0,0.25436471]
[1731029745349,0.8154,2914.4,2913.6,0.25436471]
[1731029745545,0.8154,2914.4,2913.7,0.25436471]
[1731029745848,0.8154,2914.4,2913.8,0.25436471]
[1731029746046,0.8154,2914.4,2913.9,0.25436471]
[1731029746264,0.8154,2914.4,2914.0,0.25436471]
[1731029746645,0.8154,2914.4,2913.4,0.25436471]
[1731029746984,0.8154,2914.4,2912.4,5.63053296]
[1731029746985,0.8154,2914.4,2913.5,0.25436471]
[1731029747185,0.8154,2914.4,2913.6,0.25436471]
[1731029747350,0.8154,2914.4,2913.7,0.25436471]
[1731029747552,0.8154,2914.4,2912.9,2.88489767]
[1731029747553,0.01,2914.2,2912.9,2.88489767]
[1731029747781,0.761,2914.1,2913.0,0.25436471]
[1731029747960,0.761,2914.1,2913.1,0.25436471]
[1731029748178,0.761,2913.9,2913.2,0.25436471]
[1731029748382,0.761,2913.9,2912.7,0.25436471]
[1731029748696,0.761,2913.9,2912.8,0.25436471]
[1731029748848,0.761,2913.9,2912.9,2.88489767]
[1731029749050,0.761,2913.9,2913.0,0.25436471]
[1731029749249,0.01,2914.1,2911.8,0.06866261]
[1731029749250,3.0,2913.7,2913.1,0.25436471]
[1731029749481,0.01,2914.0,2912.6,2.63053296]
[1731029749482,0.7659,2913.6,2913.2,0.25436471]
[1731029749692,0.7659,2913.6,2912.7,0.25436471]
[1731029749939,0.7659,2913.6,2912.8,0.25436471]
[1731029750192,0.7659,2913.6,2912.9,0.25436471]
[1731029750491,0.7659,2913.6,2912.6,2.63053296]
[1731029751464,0.7759,2913.6,2912.3,2.63053296]
[1731029751654,0.7659,2913.6,2912.3,2.63053296]
[1731029751855,0.01,2913.7,2912.0,0.7593]
[1731029751856,0.7591,2913.4,2912.0,0.7593]
[1731029752149,1.05307796,2913.5,2912.0,0.7593]
[1731029752150,0.7591,2913.2,2912.0,2.63053296]
[1731029753738,0.7591,2913.2,2912.3,2.63053296]
[1731029754220,0.7591,2913.2,2912.0,2.63053296]
[1731029754582,0.7591,2913.2,2911.8,0.7593]
[1731029754785,0.7591,2913.2,2912.4,2.63053296]
[1731029755430,0.7591,2913.2,2912.4,3.38983296]
[1731029756317,0.7591,2913.2,2912.4,2.63053296]
[1731029761088,0.7591,2913.2,2912.1,2.63053296]
[1731029761538,0.7591,2913.2,2912.4,2.63053296]
[1731029762132,0.7591,2913.2,2912.4,3.45163296]
[1731029762314,0.7591,2913.2,2912.4,2.63053296]
[1731029762517,0.7591,2913.2,2912.1,2.63053296]
[1731029763049,0.7591,2913.2,2912.0,0.7602]
[1731029763256,0.17855021,2913.5,2911.7,0.138776]
[1731029763257,3.0,2912.8,2911.7,0.138776]
[1731029763405,0.765,2912.6,2911.7,0.138776]
[1731029763608,2.63053296,2912.6,2911.7,0.138776]
[1731029763903,0.765,2912.4,2911.7,0.138776]
[1731029764319,3.8312,2912.2,2911.7,0.138776]
[1731029764610,0.5730533,2912.7,2911.7,0.138776]
[1731029764611,0.8312,2912.0,2911.7,0.138776]
[1731029770363,0.1746273,2912.6,2911.7,0.138776]
[1731029770364,0.7531,2912.5,2911.7,0.138776]
[1731029771345,0.55,2912.4,2911.7,0.138776]
[1731029771552,0.7707,2912.3,2911.7,0.138776]
[1731029771756,3.0,2912.2,2911.7,0.138776]
[1731029772064,0.7707,2912.0,2911.7,0.138776]
[1731029773472,0.7707,2912.0,2910.5,0.7959]
[1731029774328,0.7817,2912.0,2910.5,0.7959]
[1731029774764,0.7817,2911.8,2910.5,0.7459]
[1731029775084,0.55,2911.5,2909.9,2.98603241]
[1731029775229,0.7817,2911.4,2909.6,2.63053296]
[1731029775433,0.7817,2911.4,2909.9,2.63053296]
[1731029776678,0.7817,2911.4,2909.8,2.63053296]
[1731029776834,0.7817,2911.4,2909.9,0.06872225]
[1731029777034,0.7817,2911.4,2909.9,0.06872228]
[1731029777656,0.7817,2911.4,2910.0,0.7944]
[1731029777978,0.7817,2911.4,2910.0,1.14376552]
[1731029779057,0.96126754,2911.4,2910.1,2.63053296]
[1731029780330,0.96126754,2911.4,2910.0,1.14376552]
[1731029780569,0.96126754,2911.4,2910.0,0.7944]
[1731029780866,0.96126754,2911.4,2910.0,0.86312031]
[1731029781972,0.96126754,2911.4,2909.9,2.63053296]
[1731029783175,0.95904754,2911.4,2909.9,2.63053296]
[1731029783345,0.9584814,2911.4,2909.8,0.8282]
[1731029783550,0.9584814,2911.4,2909.8,3.45873296]
[1731029783762,0.9584814,2911.4,2909.9,0.3458733]
[1731029788372,3.0,2911.3,2909.9,0.3458733]
[1731029788665,0.8207,2911.2,2909.9,0.3458733]
[1731029789389,0.8207,2911.0,2909.9,0.3458733]
[1731029790490,0.8207,2911.0,2910.3,3.44413296]
[1731029790676,0.8207,2911.0,2910.4,0.3444133]
[1731029792204,0.8207,2911.0,2910.3,0.8136]
[1731029792498,0.7535,2911.3,2910.3,0.8136]
[1731029794062,0.7535,2911.3,2910.1,0.8042]
[1731029794260,0.7535,2911.3,2910.1,1.18226063]
[1731029795513,0.7535,2911.3,2910.1,0.37806063]
[1731029795729,0.7535,2911.3,2909.7,2.63053296]
[1731029796025,0.7576,2911.2,2909.7,2.63053296]
[1731029796202,2.63053296,2910.8,2909.2,0.7961]
[1731029796402,2.63053296,2910.8,2908.8,0.138776]
[1731029796403,2.63053296,2909.9,2908.8,0.138776]
[1731029796583,0.7961,2909.7,2909.3,0.35545246]
[1731029796779,0.7961,2909.7,2908.8,0.138776]
[1731029797422,3.0,2910.1,2908.8,0.138776]
[1731029797423,0.7668,2909.4,2908.8,0.138776]
[1731029797715,3.8071,2909.2,2908.8,0.138776]
[1731029797879,0.8071,2909.2,2908.8,0.138776]
[1731029799813,0.98944462,2909.2,2908.8,0.138776]
[1731029801192,3.7647,2908.9,2908.8,0.138776]
[1731029801396,4.4042233,2908.9,2908.8,0.138776]
[1731029801704,0.7647,2908.9,2908.8,0.138776]
[1731029804444,3.7647,2908.9,2908.8,0.138776]